Workbook

Sheet EquipPropertyPool
B1: id | C1: PropertyId | D1: Max | E1: Min | F1: PoolNum | G1: Weight | H1: NoUse
B2: int | C2: int | D2: int | E2: int | F2: int | G2: int | H2: string
B3: 2 | C3: 2 | D3: 2 | E3: 2 | F3: 2 | G3: 2 | H3: 0
B4: 索引 库*1000+属性id | C4: 属性 | D4: 属性上限 | E4: 属性下限 | F4: 所属库编号 | G4: 权重 | H4: 备注
A5: 默认值
A6: 正确性校对
A7: 校对值
B8: 1001 | C8: 5 | D8: 65 | E8: 53 | F8: 1 | G8: 100 | H8: 蓝色武器低档速度
B9: 1002 | C9: 5 | D9: 76 | E9: 69 | F9: 2 | G9: 100 | H9: 蓝色武器中档速度
B10: 1003 | C10: 5 | D10: 88 | E10: 80 | F10: 3 | G10: 100 | H10: 蓝色武器高档速度
B11: 1004 | C11: 53 | D11: 233 | E11: 100 | F11: 4 | G11: 100 | H11: 蓝色武器低档施法率
B12: 1005 | C12: 53 | D12: 367 | E12: 293 | F12: 5 | G12: 100 | H12: 蓝色武器中档施法率
B13: 1006 | C13: 53 | D13: 500 | E13: 427 | F13: 6 | G13: 100 | H13: 蓝色武器高档施法率
B14: 1007 | C14: 53 | D14: 146 | E14: 63 | F14: 7 | G14: 100 | H14: 蓝色武器低档施法率
B15: 1008 | C15: 53 | D15: 229 | E15: 183 | F15: 8 | G15: 100 | H15: 蓝色武器中档施法率
B16: 1009 | C16: 53 | D16: 313 | E16: 267 | F16: 9 | G16: 100 | H16: 蓝色武器高档施法率
B17: 1010 | C17: 55 | D17: 117 | E17: 50 | F17: 10 | G17: 100 | H17: 蓝色武器低档暴击率百分比
B18: 1011 | C18: 55 | D18: 183 | E18: 147 | F18: 11 | G18: 100 | H18: 蓝色武器中档暴击率百分比
B19: 1012 | C19: 55 | D19: 250 | E19: 213 | F19: 12 | G19: 100 | H19: 蓝色武器高档暴击率百分比
B20: 1013 | C20: 56 | D20: 117 | E20: 50 | F20: 13 | G20: 100 | H20: 蓝色武器低档暴击伤害百分比
B21: 1014 | C21: 56 | D21: 183 | E21: 147 | F21: 14 | G21: 100 | H21: 蓝色武器中档暴击伤害百分比
B22: 1015 | C22: 56 | D22: 250 | E22: 213 | F22: 15 | G22: 100 | H22: 蓝色武器高档暴击伤害百分比
B23: 1016 | C23: 1 | D23: 484 | E23: 396 | F23: 16 | G23: 100 | H23: 蓝色板甲低档生命
B24: 1017 | C24: 1 | D24: 572 | E24: 495 | F24: 17 | G24: 100 | H24: 蓝色板甲中档生命
B25: 1018 | C25: 1 | D25: 660 | E25: 583 | F25: 18 | G25: 100 | H25: 蓝色板甲高档生命
B26: 1019 | C26: 60 | D26: 140 | E26: 60 | F26: 19 | G26: 100 | H26: 蓝色板甲低档抗暴击
B27: 1020 | C27: 60 | D27: 220 | E27: 176 | F27: 20 | G27: 100 | H27: 蓝色板甲中档抗暴击
B28: 1021 | C28: 60 | D28: 300 | E28: 256 | F28: 21 | G28: 100 | H28: 蓝色板甲高档抗暴击
B29: 1022 | C29: 1 | D29: 242 | E29: 198 | F29: 22 | G29: 100 | H29: 蓝色鞋子低档生命
B30: 1023 | C30: 1 | D30: 286 | E30: 248 | F30: 23 | G30: 100 | H30: 蓝色鞋子中档生命
B31: 1024 | C31: 1 | D31: 330 | E31: 292 | F31: 24 | G31: 100 | H31: 蓝色鞋子高档生命
B32: 1025 | C32: 3 | D32: 44 | E32: 36 | F32: 25 | G32: 100 | H32: 蓝色鞋子低档护甲
B33: 1026 | C33: 3 | D33: 52 | E33: 45 | F33: 26 | G33: 100 | H33: 蓝色鞋子中档护甲
B34: 1027 | C34: 3 | D34: 60 | E34: 53 | F34: 27 | G34: 100 | H34: 蓝色鞋子高档护甲
B35: 1028 | C35: 4 | D35: 44 | E35: 36 | F35: 28 | G35: 100 | H35: 蓝色鞋子低档魔抗
B36: 1029 | C36: 4 | D36: 52 | E36: 45 | F36: 29 | G36: 100 | H36: 蓝色鞋子中档魔抗
B37: 1030 | C37: 4 | D37: 60 | E37: 53 | F37: 30 | G37: 100 | H37: 蓝色鞋子高档魔抗
B38: 1031 | C38: 3 | D38: 44 | E38: 36 | F38: 31 | G38: 100 | H38: 蓝色头饰低档护甲
B39: 1032 | C39: 3 | D39: 52 | E39: 45 | F39: 32 | G39: 100 | H39: 蓝色头饰中档护甲
B40: 1033 | C40: 3 | D40: 60 | E40: 53 | F40: 33 | G40: 100 | H40: 蓝色头饰高档护甲
B41: 1034 | C41: 4 | D41: 44 | E41: 36 | F41: 34 | G41: 100 | H41: 蓝色头饰低档魔抗
B42: 1035 | C42: 4 | D42: 52 | E42: 45 | F42: 35 | G42: 100 | H42: 蓝色头饰中档魔抗
B43: 1036 | C43: 4 | D43: 60 | E43: 53 | F43: 36 | G43: 100 | H43: 蓝色头饰高档魔抗
B44: 1037 | C44: 1 | D44: 484 | E44: 396 | F44: 37 | G44: 100 | H44: 蓝色戒指低档生命
B45: 1038 | C45: 1 | D45: 572 | E45: 495 | F45: 38 | G45: 100 | H45: 蓝色戒指中档生命
B46: 1039 | C46: 1 | D46: 660 | E46: 583 | F46: 39 | G46: 100 | H46: 蓝色戒指高档生命
B47: 1040 | C47: 3 | D47: 44 | E47: 36 | F47: 40 | G47: 100 | H47: 蓝色戒指低档护甲
B48: 1041 | C48: 3 | D48: 52 | E48: 45 | F48: 41 | G48: 100 | H48: 蓝色戒指中档护甲
B49: 1042 | C49: 3 | D49: 60 | E49: 53 | F49: 42 | G49: 100 | H49: 蓝色戒指高档护甲
B50: 1043 | C50: 4 | D50: 44 | E50: 36 | F50: 43 | G50: 100 | H50: 蓝色戒指低档魔抗
B51: 1044 | C51: 4 | D51: 52 | E51: 45 | F51: 44 | G51: 100 | H51: 蓝色戒指中档魔抗
B52: 1045 | C52: 4 | D52: 60 | E52: 53 | F52: 45 | G52: 100 | H52: 蓝色戒指高档魔抗
B53: 1046 | C53: 2 | D53: 44 | E53: 36 | F53: 46 | G53: 100 | H53: 蓝色腰带低档攻击
B54: 1047 | C54: 2 | D54: 52 | E54: 45 | F54: 47 | G54: 100 | H54: 蓝色腰带中档攻击
B55: 1048 | C55: 2 | D55: 60 | E55: 53 | F55: 48 | G55: 100 | H55: 蓝色腰带高档攻击
B56: 1049 | C56: 3 | D56: 44 | E56: 36 | F56: 49 | G56: 100 | H56: 蓝色腰带低档护甲
B57: 1050 | C57: 3 | D57: 52 | E57: 45 | F57: 50 | G57: 100 | H57: 蓝色腰带中档护甲
B58: 1051 | C58: 3 | D58: 60 | E58: 53 | F58: 51 | G58: 100 | H58: 蓝色腰带高档护甲
B59: 1052 | C59: 4 | D59: 44 | E59: 36 | F59: 52 | G59: 100 | H59: 蓝色腰带低档魔抗
B60: 1053 | C60: 4 | D60: 52 | E60: 45 | F60: 53 | G60: 100 | H60: 蓝色腰带中档魔抗
B61: 1054 | C61: 4 | D61: 60 | E61: 53 | F61: 54 | G61: 100 | H61: 蓝色腰带高档魔抗
B62: 1055 | C62: 5 | D62: 88 | E62: 72 | F62: 55 | G62: 100 | H62: 紫色武器低档速度
B63: 1056 | C63: 5 | D63: 104 | E63: 92 | F63: 56 | G63: 100 | H63: 紫色武器中档速度
B64: 1057 | C64: 5 | D64: 120 | E64: 108 | F64: 57 | G64: 100 | H64: 紫色武器高档速度
B65: 1058 | C65: 53 | D65: 667 | E65: 500 | F65: 58 | G65: 100 | H65: 紫色武器低档施法率
B66: 1059 | C66: 53 | D66: 833 | E66: 727 | F66: 59 | G66: 100 | H66: 紫色武器中档施法率
B67: 1060 | C67: 53 | D67: 1000 | E67: 893 | F67: 60 | G67: 100 | H67: 紫色武器高档施法率
B68: 1061 | C68: 53 | D68: 333 | E68: 250 | F68: 61 | G68: 100 | H68: 紫色武器低档施法率
B69: 1062 | C69: 53 | D69: 417 | E69: 363 | F69: 62 | G69: 100 | H69: 紫色武器中档施法率
B70: 1063 | C70: 53 | D70: 500 | E70: 447 | F70: 63 | G70: 100 | H70: 紫色武器高档施法率
B71: 1064 | C71: 55 | D71: 333 | E71: 250 | F71: 64 | G71: 100 | H71: 紫色武器低档暴击率百分比
B72: 1065 | C72: 55 | D72: 417 | E72: 363 | F72: 65 | G72: 100 | H72: 紫色武器中档暴击率百分比
B73: 1066 | C73: 55 | D73: 500 | E73: 447 | F73: 66 | G73: 100 | H73: 紫色武器高档暴击率百分比
B74: 1067 | C74: 56 | D74: 333 | E74: 250 | F74: 67 | G74: 100 | H74: 紫色武器低档暴击伤害百分比
B75: 1068 | C75: 56 | D75: 417 | E75: 363 | F75: 68 | G75: 100 | H75: 紫色武器中档暴击伤害百分比
B76: 1069 | C76: 56 | D76: 500 | E76: 447 | F76: 69 | G76: 100 | H76: 紫色武器高档暴击伤害百分比
B77: 1070 | C77: 1 | D77: 807 | E77: 660 | F77: 70 | G77: 100 | H77: 紫色板甲低档生命
B78: 1071 | C78: 1 | D78: 953 | E78: 818 | F78: 71 | G78: 100 | H78: 紫色板甲中档生命
B79: 1072 | C79: 1 | D79: 1100 | E79: 964 | F79: 72 | G79: 100 | H79: 紫色板甲高档生命
B80: 1073 | C80: 60 | D80: 400 | E80: 300 | F80: 73 | G80: 100 | H80: 紫色板甲低档抗暴击
B81: 1074 | C81: 60 | D81: 500 | E81: 436 | F81: 74 | G81: 100 | H81: 紫色板甲中档抗暴击
B82: 1075 | C82: 60 | D82: 600 | E82: 536 | F82: 75 | G82: 100 | H82: 紫色板甲高档抗暴击
B83: 1076 | C83: 58 | D83: 351 | E83: 302 | F83: 76 | G83: 100 | H83: 紫色板甲低档治疗百分比
B84: 1077 | C84: 58 | D84: 401 | E84: 381 | F84: 77 | G84: 100 | H84: 紫色板甲中档治疗百分比
B85: 1078 | C85: 58 | D85: 450 | E85: 431 | F85: 78 | G85: 100 | H85: 紫色板甲高档治疗百分比
B86: 1079 | C86: 57 | D86: 351 | E86: 302 | F86: 79 | G86: 100 | H86: 紫色板甲低档受治疗百分比
B87: 1080 | C87: 57 | D87: 401 | E87: 381 | F87: 80 | G87: 100 | H87: 紫色板甲中档受治疗百分比
B88: 1081 | C88: 57 | D88: 450 | E88: 431 | F88: 81 | G88: 100 | H88: 紫色板甲高档受治疗百分比
B89: 1082 | C89: 1 | D89: 403 | E89: 330 | F89: 82 | G89: 100 | H89: 紫色鞋子低档生命
B90: 1083 | C90: 1 | D90: 477 | E90: 409 | F90: 83 | G90: 100 | H90: 紫色鞋子中档生命
B91: 1084 | C91: 1 | D91: 550 | E91: 482 | F91: 84 | G91: 100 | H91: 紫色鞋子高档生命
B92: 1085 | C92: 58 | D92: 351 | E92: 302 | F92: 85 | G92: 100 | H92: 紫色鞋子低档治疗百分比
B93: 1086 | C93: 58 | D93: 401 | E93: 381 | F93: 86 | G93: 100 | H93: 紫色鞋子中档治疗百分比
B94: 1087 | C94: 58 | D94: 450 | E94: 431 | F94: 87 | G94: 100 | H94: 紫色鞋子高档治疗百分比
B95: 1088 | C95: 57 | D95: 351 | E95: 302 | F95: 88 | G95: 100 | H95: 紫色鞋子低档受治疗百分比
B96: 1089 | C96: 57 | D96: 401 | E96: 381 | F96: 89 | G96: 100 | H96: 紫色鞋子中档受治疗百分比
B97: 1090 | C97: 57 | D97: 450 | E97: 431 | F97: 90 | G97: 100 | H97: 紫色鞋子高档受治疗百分比
B98: 1091 | C98: 3 | D98: 73 | E98: 60 | F98: 91 | G98: 100 | H98: 紫色鞋子低档护甲
B99: 1092 | C99: 3 | D99: 87 | E99: 74 | F99: 92 | G99: 100 | H99: 紫色鞋子中档护甲
B100: 1093 | C100: 3 | D100: 100 | E100: 88 | F100: 93 | G100: 100 | H100: 紫色鞋子高档护甲
B101: 1094 | C101: 4 | D101: 73 | E101: 60 | F101: 94 | G101: 100 | H101: 紫色鞋子低档魔抗
B102: 1095 | C102: 4 | D102: 87 | E102: 74 | F102: 95 | G102: 100 | H102: 紫色鞋子中档魔抗
B103: 1096 | C103: 4 | D103: 100 | E103: 88 | F103: 96 | G103: 100 | H103: 紫色鞋子高档魔抗
B104: 1097 | C104: 55 | D104: 133 | E104: 100 | F104: 97 | G104: 100 | H104: 紫色鞋子低档暴击率百分比
B105: 1098 | C105: 55 | D105: 167 | E105: 145 | F105: 98 | G105: 100 | H105: 紫色鞋子中档暴击率百分比
B106: 1099 | C106: 55 | D106: 200 | E106: 179 | F106: 99 | G106: 100 | H106: 紫色鞋子高档暴击率百分比
B107: 1100 | C107: 56 | D107: 133 | E107: 100 | F107: 100 | G107: 100 | H107: 紫色鞋子低档暴击伤害百分比
B108: 1101 | C108: 56 | D108: 167 | E108: 145 | F108: 101 | G108: 100 | H108: 紫色鞋子中档暴击伤害百分比
B109: 1102 | C109: 56 | D109: 200 | E109: 179 | F109: 102 | G109: 100 | H109: 紫色鞋子高档暴击伤害百分比
B110: 1103 | C110: 3 | D110: 73 | E110: 60 | F110: 103 | G110: 100 | H110: 紫色头饰低档护甲
B111: 1104 | C111: 3 | D111: 87 | E111: 74 | F111: 104 | G111: 100 | H111: 紫色头饰中档护甲
B112: 1105 | C112: 3 | D112: 100 | E112: 88 | F112: 105 | G112: 100 | H112: 紫色头饰高档护甲
B113: 1106 | C113: 4 | D113: 73 | E113: 60 | F113: 106 | G113: 100 | H113: 紫色头饰低档魔抗
B114: 1107 | C114: 4 | D114: 87 | E114: 74 | F114: 107 | G114: 100 | H114: 紫色头饰中档魔抗
B115: 1108 | C115: 4 | D115: 100 | E115: 88 | F115: 108 | G115: 100 | H115: 紫色头饰高档魔抗
B116: 1109 | C116: 58 | D116: 468 | E116: 402 | F116: 109 | G116: 100 | H116: 紫色头饰低档治疗百分比
B117: 1110 | C117: 58 | D117: 534 | E117: 508 | F117: 110 | G117: 100 | H117: 紫色头饰中档治疗百分比
B118: 1111 | C118: 58 | D118: 600 | E118: 574 | F118: 111 | G118: 100 | H118: 紫色头饰高档治疗百分比
B119: 1112 | C119: 57 | D119: 468 | E119: 402 | F119: 112 | G119: 100 | H119: 紫色头饰低档受治疗百分比
B120: 1113 | C120: 57 | D120: 534 | E120: 508 | F120: 113 | G120: 100 | H120: 紫色头饰中档受治疗百分比
B121: 1114 | C121: 57 | D121: 600 | E121: 574 | F121: 114 | G121: 100 | H121: 紫色头饰高档受治疗百分比
B122: 1115 | C122: 55 | D122: 200 | E122: 150 | F122: 115 | G122: 100 | H122: 紫色头饰低档暴击率百分比
B123: 1116 | C123: 55 | D123: 250 | E123: 218 | F123: 116 | G123: 100 | H123: 紫色头饰中档暴击率百分比
B124: 1117 | C124: 55 | D124: 300 | E124: 268 | F124: 117 | G124: 100 | H124: 紫色头饰高档暴击率百分比
B125: 1118 | C125: 56 | D125: 200 | E125: 150 | F125: 118 | G125: 100 | H125: 紫色头饰低档暴击伤害百分比
B126: 1119 | C126: 56 | D126: 250 | E126: 218 | F126: 119 | G126: 100 | H126: 紫色头饰中档暴击伤害百分比
B127: 1120 | C127: 56 | D127: 300 | E127: 268 | F127: 120 | G127: 100 | H127: 紫色头饰高档暴击伤害百分比
B128: 1121 | C128: 61 | D128: 197 | E128: 170 | F128: 121 | G128: 100 | H128: 紫色戒指低档生命百分比
B129: 1122 | C129: 61 | D129: 223 | E129: 222 | F129: 122 | G129: 100 | H129: 紫色戒指中档生命百分比
B130: 1123 | C130: 61 | D130: 250 | E130: 248 | F130: 123 | G130: 100 | H130: 紫色戒指高档生命百分比
B131: 1124 | C131: 1 | D131: 807 | E131: 660 | F131: 124 | G131: 100 | H131: 紫色戒指低档生命
B132: 1125 | C132: 1 | D132: 953 | E132: 818 | F132: 125 | G132: 100 | H132: 紫色戒指中档生命
B133: 1126 | C133: 1 | D133: 1100 | E133: 964 | F133: 126 | G133: 100 | H133: 紫色戒指高档生命
B134: 1127 | C134: 3 | D134: 73 | E134: 60 | F134: 127 | G134: 100 | H134: 紫色戒指低档护甲
B135: 1128 | C135: 3 | D135: 87 | E135: 74 | F135: 128 | G135: 100 | H135: 紫色戒指中档护甲
B136: 1129 | C136: 3 | D136: 100 | E136: 88 | F136: 129 | G136: 100 | H136: 紫色戒指高档护甲
B137: 1130 | C137: 4 | D137: 73 | E137: 60 | F137: 130 | G137: 100 | H137: 紫色戒指低档魔抗
B138: 1131 | C138: 4 | D138: 87 | E138: 74 | F138: 131 | G138: 100 | H138: 紫色戒指中档魔抗
B139: 1132 | C139: 4 | D139: 100 | E139: 88 | F139: 132 | G139: 100 | H139: 紫色戒指高档魔抗
B140: 1133 | C140: 2 | D140: 73 | E140: 60 | F140: 133 | G140: 100 | H140: 紫色腰带低档攻击
B141: 1134 | C141: 2 | D141: 87 | E141: 74 | F141: 134 | G141: 100 | H141: 紫色腰带中档攻击
B142: 1135 | C142: 2 | D142: 100 | E142: 88 | F142: 135 | G142: 100 | H142: 紫色腰带高档攻击
B143: 1136 | C143: 61 | D143: 197 | E143: 170 | F143: 136 | G143: 100 | H143: 紫色腰带低档生命百分比
B144: 1137 | C144: 61 | D144: 223 | E144: 222 | F144: 137 | G144: 100 | H144: 紫色腰带中档生命百分比
B145: 1138 | C145: 61 | D145: 250 | E145: 248 | F145: 138 | G145: 100 | H145: 紫色腰带高档生命百分比
B146: 1139 | C146: 3 | D146: 73 | E146: 60 | F146: 139 | G146: 100 | H146: 紫色腰带低档护甲
B147: 1140 | C147: 3 | D147: 87 | E147: 74 | F147: 140 | G147: 100 | H147: 紫色腰带中档护甲
B148: 1141 | C148: 3 | D148: 100 | E148: 88 | F148: 141 | G148: 100 | H148: 紫色腰带高档护甲
B149: 1142 | C149: 4 | D149: 73 | E149: 60 | F149: 142 | G149: 100 | H149: 紫色腰带低档魔抗
B150: 1143 | C150: 4 | D150: 87 | E150: 74 | F150: 143 | G150: 100 | H150: 紫色腰带中档魔抗
B151: 1144 | C151: 4 | D151: 100 | E151: 88 | F151: 144 | G151: 100 | H151: 紫色腰带高档魔抗
B152: 1145 | C152: 5 | D152: 143 | E152: 126 | F152: 145 | G152: 100 | H152: 橙色武器低档速度
B153: 1146 | C153: 5 | D153: 160 | E153: 147 | F153: 146 | G153: 100 | H153: 橙色武器中下档速度
B154: 1147 | C154: 5 | D154: 176 | E154: 164 | F154: 147 | G154: 100 | H154: 橙色武器中上档速度
B155: 1148 | C155: 5 | D155: 193 | E155: 180 | F155: 148 | G155: 100 | H155: 橙色武器高档速度
B156: 1149 | C156: 5 | D156: 210 | E156: 197 | F156: 149 | G156: 100 | H156: 橙色武器顶级速度
B157: 1150 | C157: 53 | D157: 1104 | E157: 1005 | F157: 150 | G157: 100 | H157: 橙色武器低档施法率
B158: 1151 | C158: 53 | D158: 1203 | E158: 1124 | F158: 151 | G158: 100 | H158: 橙色武器中下档施法率
B159: 1152 | C159: 53 | D159: 1302 | E159: 1223 | F159: 152 | G159: 100 | H159: 橙色武器中上档施法率
B160: 1153 | C160: 53 | D160: 1401 | E160: 1322 | F160: 153 | G160: 100 | H160: 橙色武器高档施法率
B161: 1154 | C161: 53 | D161: 1500 | E161: 1421 | F161: 154 | G161: 100 | H161: 橙色武器顶级施法率
B162: 1155 | C162: 53 | D162: 581 | E162: 529 | F162: 155 | G162: 100 | H162: 橙色武器低档施法率
B163: 1156 | C163: 53 | D163: 633 | E163: 592 | F163: 156 | G163: 100 | H163: 橙色武器中下档施法率
B164: 1157 | C164: 53 | D164: 685 | E164: 644 | F164: 157 | G164: 100 | H164: 橙色武器中上档施法率
B165: 1158 | C165: 53 | D165: 737 | E165: 696 | F165: 158 | G165: 100 | H165: 橙色武器高档施法率
B166: 1159 | C166: 53 | D166: 789 | E166: 748 | F166: 159 | G166: 100 | H166: 橙色武器顶级施法率
B167: 1160 | C167: 55 | D167: 552 | E167: 503 | F167: 160 | G167: 100 | H167: 橙色武器低档暴击率百分比
B168: 1161 | C168: 55 | D168: 602 | E168: 562 | F168: 161 | G168: 100 | H168: 橙色武器中下档暴击率百分比
B169: 1162 | C169: 55 | D169: 651 | E169: 612 | F169: 162 | G169: 100 | H169: 橙色武器中上档暴击率百分比
B170: 1163 | C170: 55 | D170: 701 | E170: 661 | F170: 163 | G170: 100 | H170: 橙色武器高档暴击率百分比
B171: 1164 | C171: 55 | D171: 750 | E171: 711 | F171: 164 | G171: 100 | H171: 橙色武器顶级暴击率百分比
B172: 1165 | C172: 56 | D172: 552 | E172: 503 | F172: 165 | G172: 100 | H172: 橙色武器低档暴击伤害百分比
B173: 1166 | C173: 56 | D173: 602 | E173: 562 | F173: 166 | G173: 100 | H173: 橙色武器中下档暴击伤害百分比
B174: 1167 | C174: 56 | D174: 651 | E174: 612 | F174: 167 | G174: 100 | H174: 橙色武器中上档暴击伤害百分比
B175: 1168 | C175: 56 | D175: 701 | E175: 661 | F175: 168 | G175: 100 | H175: 橙色武器高档暴击伤害百分比
B176: 1169 | C176: 56 | D176: 750 | E176: 711 | F176: 169 | G176: 100 | H176: 橙色武器顶级暴击伤害百分比
B177: 1170 | C177: 101 | D177: 360 | E177: 300 | F177: 170 | G177: 100 | H177: 橙色武器低档属性伤害
B178: 1171 | C178: 101 | D178: 420 | E178: 370 | F178: 171 | G178: 100 | H178: 橙色武器中下档属性伤害
B179: 1172 | C179: 101 | D179: 480 | E179: 430 | F179: 172 | G179: 100 | H179: 橙色武器中上档属性伤害
B180: 1173 | C180: 101 | D180: 540 | E180: 490 | F180: 173 | G180: 100 | H180: 橙色武器高档属性伤害
B181: 1174 | C181: 101 | D181: 600 | E181: 550 | F181: 174 | G181: 100 | H181: 橙色武器顶级属性伤害
B182: 1175 | C182: 102 | D182: 360 | E182: 300 | F182: 170 | G182: 100 | H182: 橙色武器低档属性伤害
B183: 1176 | C183: 102 | D183: 420 | E183: 370 | F183: 171 | G183: 100 | H183: 橙色武器中下档属性伤害
B184: 1177 | C184: 102 | D184: 480 | E184: 430 | F184: 172 | G184: 100 | H184: 橙色武器中上档属性伤害
B185: 1178 | C185: 102 | D185: 540 | E185: 490 | F185: 173 | G185: 100 | H185: 橙色武器高档属性伤害
B186: 1179 | C186: 102 | D186: 600 | E186: 550 | F186: 174 | G186: 100 | H186: 橙色武器顶级属性伤害
B187: 1180 | C187: 103 | D187: 360 | E187: 300 | F187: 170 | G187: 100 | H187: 橙色武器低档属性伤害
B188: 1181 | C188: 103 | D188: 420 | E188: 370 | F188: 171 | G188: 100 | H188: 橙色武器中下档属性伤害
B189: 1182 | C189: 103 | D189: 480 | E189: 430 | F189: 172 | G189: 100 | H189: 橙色武器中上档属性伤害
B190: 1183 | C190: 103 | D190: 540 | E190: 490 | F190: 173 | G190: 100 | H190: 橙色武器高档属性伤害
B191: 1184 | C191: 103 | D191: 600 | E191: 550 | F191: 174 | G191: 100 | H191: 橙色武器顶级属性伤害
B192: 1185 | C192: 104 | D192: 360 | E192: 300 | F192: 170 | G192: 100 | H192: 橙色武器低档属性伤害
B193: 1186 | C193: 104 | D193: 420 | E193: 370 | F193: 171 | G193: 100 | H193: 橙色武器中下档属性伤害
B194: 1187 | C194: 104 | D194: 480 | E194: 430 | F194: 172 | G194: 100 | H194: 橙色武器中上档属性伤害
B195: 1188 | C195: 104 | D195: 540 | E195: 490 | F195: 173 | G195: 100 | H195: 橙色武器高档属性伤害
B196: 1189 | C196: 104 | D196: 600 | E196: 550 | F196: 174 | G196: 100 | H196: 橙色武器顶级属性伤害
B197: 1190 | C197: 105 | D197: 360 | E197: 300 | F197: 170 | G197: 100 | H197: 橙色武器低档属性伤害
B198: 1191 | C198: 105 | D198: 420 | E198: 370 | F198: 171 | G198: 100 | H198: 橙色武器中下档属性伤害
B199: 1192 | C199: 105 | D199: 480 | E199: 430 | F199: 172 | G199: 100 | H199: 橙色武器中上档属性伤害
B200: 1193 | C200: 105 | D200: 540 | E200: 490 | F200: 173 | G200: 100 | H200: 橙色武器高档属性伤害
... 450 more rows

Sheet Sheet1
B1: 库 | C1: 属性 | D1: 品质 | E1: 属于 | F1: 占比 | G1: min | H1: max | I1: id | J1: min | K1: max | S1: 共计
A2: =D2&E2 -> 蓝色武器 | B2: 1 | C2: 速度 | D2: 蓝色 | E2: 武器 | F2: 15 | G2: =[1]辅助表!$AG$4*176*F2/100 -> 11.22 | H2: =G2/0.6 -> 18.7 | I2: =VLOOKUP(C2,[1]辅助表!Y:Z,2,0) -> 5 | J2: =INT(G2) -> 11 | K2: =INT(H2) -> 18 | Q2: 蓝色装备 | R2: 效果命中 | S2: 10
A3: =D3&E3 -> 蓝色武器 | B3: 1 | C3: 效果抵抗 | D3: 蓝色 | E3: 武器 | F3: 50 | G3: 5 | H3: 5 | I3: =VLOOKUP(C3,[1]辅助表!Y:Z,2,0) -> 54 | J3: =INT(G3) -> 5 | K3: 5 | R3: 效果抵抗 | S3: 10
A4: 蓝色武器 | B4: 1 | C4: 效果命中 | D4: 蓝色 | E4: 武器 | F4: 50 | G4: 5 | H4: 5 | I4: =VLOOKUP(C4,[1]辅助表!Y:Z,2,0) -> 53 | J4: 5 | K4: 5
A5: 蓝色铠甲 | B5: 2 | C5: 生命 | D5: 蓝色 | E5: 铠甲 | F5: 21 | G5: =2400*[1]辅助表!$AE$4*F5/100 -> 235.2763636 | H5: =G5/0.6 -> 392.1272727 | I5: =VLOOKUP(C5,[1]辅助表!Y:Z,2,0) -> 1 | J5: 235 | K5: 392 | Q5: 紫色装备
A6: 蓝色铠甲 | B6: 2 | C6: 攻击 | D6: 蓝色 | E6: 铠甲 | F6: 21 | G6: =200*[1]辅助表!$AE$4*F6/100 -> 19.60636364 | H6: =G6/0.6 -> 32.67727273 | I6: =VLOOKUP(C6,[1]辅助表!Y:Z,2,0) -> 2 | J6: 19 | K6: 32 | R6: 效果命中 | S6: 16
A7: 蓝色铠甲 | B7: 2 | C7: 效果命中 | D7: 蓝色 | E7: 铠甲 | F7: 50 | G7: 5 | H7: 5 | I7: =VLOOKUP(C7,[1]辅助表!Y:Z,2,0) -> 53 | J7: 5 | K7: 5 | R7: 效果抵抗 | S7: 16
A8: 蓝色铠甲 | B8: 2 | C8: 效果抵抗 | D8: 蓝色 | E8: 铠甲 | F8: 50 | G8: 5 | H8: 5 | I8: =VLOOKUP(C8,[1]辅助表!Y:Z,2,0) -> 54 | J8: 5 | K8: 5 | R8: 暴击率 | S8: 10
A9: 蓝色鞋子 | B9: 3 | C9: 生命 | D9: 蓝色 | E9: 鞋子 | F9: 24 | G9: =2400*[1]辅助表!$AE$4*F9/100 -> 268.8872727 | H9: =G9/0.6 -> 448.1454545 | I9: =VLOOKUP(C9,[1]辅助表!Y:Z,2,0) -> 1 | J9: 268 | K9: 448 | R9: 暴击伤害 | S9: 45
A10: 蓝色鞋子 | B10: 3 | C10: 攻击 | D10: 蓝色 | E10: 鞋子 | F10: 19 | G10: =200*[1]辅助表!$AE$4*F10/100 -> 17.73909091 | H10: 29.56515152 | I10: =VLOOKUP(C10,[1]辅助表!Y:Z,2,0) -> 2 | J10: 17 | K10: 29
A11: 蓝色鞋子 | B11: 3 | C11: 护甲 | D11: 蓝色 | E11: 鞋子 | F11: 10 | G11: =200*[1]辅助表!$AE$4*F11/100 -> 9.336363636 | H11: 15.56060606 | I11: =VLOOKUP(C11,[1]辅助表!Y:Z,2,0) -> 3 | J11: 9 | K11: 15
A12: 蓝色鞋子 | B12: 3 | C12: 魔抗 | D12: 蓝色 | E12: 鞋子 | F12: 13 | G12: =200*[1]辅助表!$AE$4*F12/100 -> 12.13727273 | H12: 20.22878788 | I12: =VLOOKUP(C12,[1]辅助表!Y:Z,2,0) -> 4 | J12: 12 | K12: 20 | Q12: 橙色装备
A13: 蓝色头饰 | B13: 4 | C13: 护甲 | D13: 蓝色 | E13: 头饰 | F13: 28 | G13: =200*[1]辅助表!$AE$4*F13/100 -> 26.14181818 | H13: 43.56969697 | I13: =VLOOKUP(C13,[1]辅助表!Y:Z,2,0) -> 3 | J13: 26 | K13: 43 | R13: 效果命中 | S13: 20
A14: 蓝色头饰 | B14: 4 | C14: 魔抗 | D14: 蓝色 | E14: 头饰 | F14: 29 | G14: =200*[1]辅助表!$AE$4*F14/100 -> 27.07545455 | H14: 45.12575758 | I14: =VLOOKUP(C14,[1]辅助表!Y:Z,2,0) -> 4 | J14: 27 | K14: 45 | R14: 效果抵抗 | S14: 20
A15: 蓝色头饰 | B15: 4 | C15: 速度 | D15: 蓝色 | E15: 头饰 | F15: 21 | G15: =[1]辅助表!$AG$4*176*F15/100 -> 15.708 | H15: 26.18 | I15: =VLOOKUP(C15,[1]辅助表!Y:Z,2,0) -> 5 | J15: 15 | K15: 26 | R15: 暴击率 | S15: 20
A16: 紫色武器 | B16: 5 | C16: 速度 | D16: 紫色 | E16: 武器 | F16: 15 | G16: =176*[1]辅助表!$AG$5*F16/100 -> 16.83 | H16: =176*[1]辅助表!$AF$5*F16/100 -> 19.8 | I16: =VLOOKUP(C16,[1]辅助表!Y:Z,2,0) -> 5 | J16: =INT(G16) -> 16 | K16: =INT(H16) -> 19 | R16: 暴击伤害 | S16: 80
A17: 紫色武器 | B17: 5 | C17: 效果抵抗 | D17: 紫色 | E17: 武器 | F17: 50 | G17: 8 | H17: 8 | I17: =VLOOKUP(C17,[1]辅助表!Y:Z,2,0) -> 54 | J17: 8 | K17: 8 | R17: 火攻（%） | S17: 25
A18: 紫色武器 | B18: 5 | C18: 效果命中 | D18: 紫色 | E18: 武器 | F18: 50 | G18: 8 | H18: 8 | I18: =VLOOKUP(C18,[1]辅助表!Y:Z,2,0) -> 53 | J18: 8 | K18: 8 | R18: 风攻（%） | S18: 25
A19: 紫色武器 | B19: 5 | C19: 暴击伤害 | D19: 紫色 | E19: 武器 | F19: 60 | G19: 25 | H19: 25 | I19: =VLOOKUP(C19,[1]辅助表!Y:Z,2,0) -> 56 | J19: 25 | K19: 25 | R19: 水攻（%） | S19: 25
A20: 紫色武器 | B20: 5 | C20: 暴击率 | D20: 紫色 | E20: 武器 | F20: 22 | G20: 5 | H20: 5 | I20: =VLOOKUP(C20,[1]辅助表!Y:Z,2,0) -> 55 | J20: 5 | K20: 5 | R20: 地攻（%） | S20: 25
A21: 紫色铠甲 | B21: 6 | C21: 生命 | D21: 紫色 | E21: 铠甲 | F21: 21 | G21: =2400*[1]辅助表!$AE$5*F21/100 -> 302.4 | H21: =G21/0.6 -> 504 | I21: =VLOOKUP(C21,[1]辅助表!Y:Z,2,0) -> 1 | J21: 302 | K21: 504 | R21: 光攻（%） | S21: 25
A22: 紫色铠甲 | B22: 6 | C22: 攻击 | D22: 紫色 | E22: 铠甲 | F22: 21 | G22: =200*[1]辅助表!$AE$5*F22/100 -> 25.2 | H22: =G22/0.6 -> 42 | I22: =VLOOKUP(C22,[1]辅助表!Y:Z,2,0) -> 2 | J22: 25 | K22: 42 | R22: 暗攻（%） | S22: 25
A23: 紫色铠甲 | B23: 6 | C23: 效果命中 | D23: 紫色 | E23: 铠甲 | F23: 50 | G23: 8 | H23: 8 | I23: =VLOOKUP(C23,[1]辅助表!Y:Z,2,0) -> 53 | J23: 8 | K23: 8 | R23: 火抗（%） | S23: 20
A24: 紫色铠甲 | B24: 6 | C24: 效果抵抗 | D24: 紫色 | E24: 铠甲 | F24: 50 | G24: 8 | H24: 8 | I24: =VLOOKUP(C24,[1]辅助表!Y:Z,2,0) -> 54 | J24: 8 | K24: 8 | R24: 风抗（%） | S24: 20
A25: 紫色鞋子 | B25: 7 | C25: 生命 | D25: 紫色 | E25: 鞋子 | F25: 24 | G25: =2400*[1]辅助表!$AE$5*F25/100 -> 345.6 | H25: =G25/0.6 -> 576 | I25: =VLOOKUP(C25,[1]辅助表!Y:Z,2,0) -> 1 | J25: 345 | K25: 576 | R25: 水抗（%） | S25: 20
A26: 紫色鞋子 | B26: 7 | C26: 攻击 | D26: 紫色 | E26: 鞋子 | F26: 19 | G26: =200*[1]辅助表!$AE$5*F26/100 -> 22.8 | H26: =G26/0.6 -> 38 | I26: =VLOOKUP(C26,[1]辅助表!Y:Z,2,0) -> 2 | J26: 22 | K26: 38 | R26: 地抗（%） | S26: 20
A27: 紫色鞋子 | B27: 7 | C27: 护甲 | D27: 紫色 | E27: 鞋子 | F27: 10 | G27: =200*[1]辅助表!$AE$5*F27/100 -> 12 | H27: =G27/0.6 -> 20 | I27: =VLOOKUP(C27,[1]辅助表!Y:Z,2,0) -> 3 | J27: 12 | K27: 20 | R27: 光抗（%） | S27: 20
A28: 紫色鞋子 | B28: 7 | C28: 魔抗 | D28: 紫色 | E28: 鞋子 | F28: 13 | G28: =200*[1]辅助表!$AE$5*F28/100 -> 15.6 | H28: =G28/0.6 -> 26 | I28: =VLOOKUP(C28,[1]辅助表!Y:Z,2,0) -> 4 | J28: 15 | K28: 26 | R28: 暗抗（%） | S28: 20
A29: 紫色鞋子 | B29: 7 | C29: 暴击率 | D29: 紫色 | E29: 鞋子 | F29: 23 | G29: 5 | H29: 5 | I29: =VLOOKUP(C29,[1]辅助表!Y:Z,2,0) -> 55 | J29: 5 | K29: 5
A30: 紫色鞋子 | B30: 7 | C30: 暴击伤害 | D30: 紫色 | E30: 鞋子 | F30: 20 | G30: 10 | H30: 10 | I30: =VLOOKUP(C30,[1]辅助表!Y:Z,2,0) -> 56 | J30: 10 | K30: 10
A31: 紫色头饰 | B31: 8 | C31: 护甲 | D31: 紫色 | E31: 头饰 | F31: 28 | G31: =200*[1]辅助表!$AE$5*F31/100 -> 33.6 | H31: =G31/0.6 -> 56 | I31: =VLOOKUP(C31,[1]辅助表!Y:Z,2,0) -> 3 | J31: 33 | K31: 56
A32: 紫色头饰 | B32: 8 | C32: 魔抗 | D32: 紫色 | E32: 头饰 | F32: 29 | G32: =200*[1]辅助表!$AE$5*F32/100 -> 34.8 | H32: =G32/0.6 -> 58 | I32: =VLOOKUP(C32,[1]辅助表!Y:Z,2,0) -> 4 | J32: 34 | K32: 58
A33: 紫色头饰 | B33: 8 | C33: 速度 | D33: 紫色 | E33: 头饰 | F33: 21 | G33: =176*[1]辅助表!$AG$5*F33/100 -> 23.562 | H33: =176*[1]辅助表!$AF$5*F33/100 -> 27.72 | I33: =VLOOKUP(C33,[1]辅助表!Y:Z,2,0) -> 5 | J33: 23 | K33: 27
A34: 紫色头饰 | B34: 8 | C34: 暴击伤害 | D34: 紫色 | E34: 头饰 | F34: 20 | G34: 10 | H34: 10 | I34: =VLOOKUP(C34,[1]辅助表!Y:Z,2,0) -> 56 | J34: 10 | K34: 10
A35: 橙色武器 | B35: 9 | C35: 速度 | D35: 橙色 | E35: 武器 | F35: 15 | G35: =176*[1]辅助表!$AG$6*F35/100 -> 22.44 | H35: =176*[1]辅助表!$AF$6*F35/100 -> 26.4 | I35: =VLOOKUP(C35,[1]辅助表!Y:Z,2,0) -> 5 | J35: =INT(G35) -> 22 | K35: =INT(H35) -> 26
A36: 橙色武器 | B36: 9 | C36: 效果抵抗 | D36: 橙色 | E36: 武器 | F36: 50 | G36: 10 | H36: 10 | I36: =VLOOKUP(C36,[1]辅助表!Y:Z,2,0) -> 54 | J36: 10 | K36: 10
A37: 橙色武器 | B37: 9 | C37: 效果命中 | D37: 橙色 | E37: 武器 | F37: 50 | G37: 10 | H37: 10 | I37: =VLOOKUP(C37,[1]辅助表!Y:Z,2,0) -> 53 | J37: 10 | K37: 10
A38: 橙色武器 | B38: 9 | C38: 暴击伤害 | D38: 橙色 | E38: 武器 | F38: 60 | G38: 40 | H38: 40 | I38: =VLOOKUP(C38,[1]辅助表!Y:Z,2,0) -> 56 | J38: 40 | K38: 40
A39: 橙色武器 | B39: 9 | C39: 暴击率 | D39: 橙色 | E39: 武器 | F39: 22 | G39: 15 | H39: 15 | I39: =VLOOKUP(C39,[1]辅助表!Y:Z,2,0) -> 55 | J39: 15 | K39: 15
A40: 橙色武器 | B40: 9 | C40: 火攻（%） | D40: 橙色 | E40: 武器 | F40: 15 | G40: 8 | H40: 15 | I40: =VLOOKUP(C40,[1]辅助表!Y:Z,2,0) -> 101 | J40: 8 | K40: 15
A41: 橙色武器 | B41: 9 | C41: 风攻（%） | D41: 橙色 | E41: 武器 | F41: 15 | G41: 8 | H41: 15 | I41: =VLOOKUP(C41,[1]辅助表!Y:Z,2,0) -> 102 | J41: 8 | K41: 15
A42: 橙色武器 | B42: 9 | C42: 水攻（%） | D42: 橙色 | E42: 武器 | F42: 15 | G42: 8 | H42: 15 | I42: =VLOOKUP(C42,[1]辅助表!Y:Z,2,0) -> 103 | J42: 8 | K42: 15
A43: 橙色武器 | B43: 9 | C43: 地攻（%） | D43: 橙色 | E43: 武器 | F43: 15 | G43: 8 | H43: 15 | I43: =VLOOKUP(C43,[1]辅助表!Y:Z,2,0) -> 104 | J43: 8 | K43: 15
A44: 橙色武器 | B44: 9 | C44: 光攻（%） | D44: 橙色 | E44: 武器 | F44: 15 | G44: 8 | H44: 15 | I44: =VLOOKUP(C44,[1]辅助表!Y:Z,2,0) -> 105 | J44: 8 | K44: 15
A45: 橙色武器 | B45: 9 | C45: 暗攻（%） | D45: 橙色 | E45: 武器 | F45: 15 | G45: 8 | H45: 15 | I45: =VLOOKUP(C45,[1]辅助表!Y:Z,2,0) -> 106 | J45: 8 | K45: 15
A46: 橙色铠甲 | B46: 10 | C46: 生命 | D46: 橙色 | E46: 铠甲 | F46: 21 | G46: =2400*[1]辅助表!$AE$6*F46/100 -> 1608.218182 | H46: =G46/0.6 -> 2680.363636 | I46: =VLOOKUP(C46,[1]辅助表!Y:Z,2,0) -> 1 | J46: 1608 | K46: 2680
A47: 橙色铠甲 | B47: 10 | C47: 攻击 | D47: 橙色 | E47: 铠甲 | F47: 21 | G47: =200*[1]辅助表!$AE$6*F47/100 -> 134.0181818 | H47: =G47/0.6 -> 223.3636364 | I47: =VLOOKUP(C47,[1]辅助表!Y:Z,2,0) -> 2 | J47: 134 | K47: 223
A48: 橙色铠甲 | B48: 10 | C48: 效果命中 | D48: 橙色 | E48: 铠甲 | F48: 50 | G48: 10 | H48: 10 | I48: =VLOOKUP(C48,[1]辅助表!Y:Z,2,0) -> 53 | J48: 10 | K48: 10
A49: 橙色铠甲 | B49: 10 | C49: 效果抵抗 | D49: 橙色 | E49: 铠甲 | F49: 50 | G49: 10 | H49: 10 | I49: =VLOOKUP(C49,[1]辅助表!Y:Z,2,0) -> 54 | J49: 10 | K49: 10
A50: 橙色铠甲 | B50: 10 | C50: 火抗（%） | D50: 橙色 | E50: 铠甲 | F50: 10 | G50: 8 | H50: 15 | I50: =VLOOKUP(C50,[1]辅助表!Y:Z,2,0) -> 107 | J50: 8 | K50: 15
A51: 橙色铠甲 | B51: 10 | C51: 风抗（%） | D51: 橙色 | E51: 铠甲 | F51: 10 | G51: 8 | H51: 15 | I51: =VLOOKUP(C51,[1]辅助表!Y:Z,2,0) -> 108 | J51: 8 | K51: 15
A52: 橙色铠甲 | B52: 10 | C52: 水抗（%） | D52: 橙色 | E52: 铠甲 | F52: 10 | G52: 8 | H52: 15 | I52: =VLOOKUP(C52,[1]辅助表!Y:Z,2,0) -> 109 | J52: 8 | K52: 15
A53: 橙色铠甲 | B53: 10 | C53: 地抗（%） | D53: 橙色 | E53: 铠甲 | F53: 10 | G53: 8 | H53: 15 | I53: =VLOOKUP(C53,[1]辅助表!Y:Z,2,0) -> 110 | J53: 8 | K53: 15
A54: 橙色铠甲 | B54: 10 | C54: 光抗（%） | D54: 橙色 | E54: 铠甲 | F54: 10 | G54: 8 | H54: 15 | I54: =VLOOKUP(C54,[1]辅助表!Y:Z,2,0) -> 111 | J54: 8 | K54: 15
A55: 橙色铠甲 | B55: 10 | C55: 暗抗（%） | D55: 橙色 | E55: 铠甲 | F55: 10 | G55: 8 | H55: 15 | I55: =VLOOKUP(C55,[1]辅助表!Y:Z,2,0) -> 112 | J55: 8 | K55: 15
A56: 橙色鞋子 | B56: 11 | C56: 生命 | D56: 橙色 | E56: 鞋子 | F56: 24 | G56: =2400*[1]辅助表!$AE$6*F56/100 -> 1837.963636 | H56: =G56/0.6 -> 3063.272727 | I56: =VLOOKUP(C56,[1]辅助表!Y:Z,2,0) -> 1 | J56: 1837 | K56: 3063
A57: 橙色鞋子 | B57: 11 | C57: 攻击 | D57: 橙色 | E57: 鞋子 | F57: 19 | G57: =200*[1]辅助表!$AE$6*F57/100 -> 121.2545455 | H57: =G57/0.6 -> 202.0909091 | I57: =VLOOKUP(C57,[1]辅助表!Y:Z,2,0) -> 2 | J57: 121 | K57: 202
A58: 橙色鞋子 | B58: 11 | C58: 护甲 | D58: 橙色 | E58: 鞋子 | F58: 10 | G58: =200*[1]辅助表!$AE$6*F58/100 -> 63.81818182 | H58: =G58/0.6 -> 106.3636364 | I58: =VLOOKUP(C58,[1]辅助表!Y:Z,2,0) -> 3 | J58: 63 | K58: 106
A59: 橙色鞋子 | B59: 11 | C59: 魔抗 | D59: 橙色 | E59: 鞋子 | F59: 13 | G59: =200*[1]辅助表!$AE$6*F59/100 -> 82.96363636 | H59: =G59/0.6 -> 138.2727273 | I59: =VLOOKUP(C59,[1]辅助表!Y:Z,2,0) -> 4 | J59: 82 | K59: 138
A60: 橙色鞋子 | B60: 11 | C60: 暴击率 | D60: 橙色 | E60: 鞋子 | F60: 23 | G60: 5 | H60: 5 | I60: =VLOOKUP(C60,[1]辅助表!Y:Z,2,0) -> 55 | J60: 5 | K60: 5
A61: 橙色鞋子 | B61: 11 | C61: 暴击伤害 | D61: 橙色 | E61: 鞋子 | F61: 17 | G61: 15 | H61: 15 | I61: =VLOOKUP(C61,[1]辅助表!Y:Z,2,0) -> 56 | J61: 15 | K61: 15
A62: 橙色鞋子 | B62: 11 | C62: 火抗（%） | D62: 橙色 | E62: 鞋子 | F62: 15 | G62: 5 | H62: 5 | I62: =VLOOKUP(C62,[1]辅助表!Y:Z,2,0) -> 107 | J62: 5 | K62: 5
A63: 橙色鞋子 | B63: 11 | C63: 风抗（%） | D63: 橙色 | E63: 鞋子 | F63: 15 | G63: 5 | H63: 5 | I63: =VLOOKUP(C63,[1]辅助表!Y:Z,2,0) -> 108 | J63: 5 | K63: 5
A64: 橙色鞋子 | B64: 11 | C64: 水抗（%） | D64: 橙色 | E64: 鞋子 | F64: 15 | G64: 5 | H64: 5 | I64: =VLOOKUP(C64,[1]辅助表!Y:Z,2,0) -> 109 | J64: 5 | K64: 5
A65: 橙色鞋子 | B65: 11 | C65: 地抗（%） | D65: 橙色 | E65: 鞋子 | F65: 15 | G65: 5 | H65: 5 | I65: =VLOOKUP(C65,[1]辅助表!Y:Z,2,0) -> 110 | J65: 5 | K65: 5
A66: 橙色鞋子 | B66: 11 | C66: 光抗（%） | D66: 橙色 | E66: 鞋子 | F66: 15 | G66: 5 | H66: 5 | I66: =VLOOKUP(C66,[1]辅助表!Y:Z,2,0) -> 111 | J66: 5 | K66: 5
A67: =D67&E67 -> 橙色鞋子 | B67: 11 | C67: 暗抗（%） | D67: 橙色 | E67: 鞋子 | F67: 15 | G67: 5 | H67: 5 | I67: =VLOOKUP(C67,[1]辅助表!Y:Z,2,0) -> 112 | J67: 5 | K67: 5
A68: 橙色头饰 | B68: 12 | C68: 护甲 | D68: 橙色 | E68: 头饰 | F68: 28 | G68: 5 | H68: 5 | I68: =VLOOKUP(C68,[1]辅助表!Y:Z,2,0) -> 3 | J68: 5 | K68: 5
A69: 橙色头饰 | B69: 12 | C69: 魔抗 | D69: 橙色 | E69: 头饰 | F69: 29 | G69: =200*[1]辅助表!$AE$6*F69/100 -> 185.0727273 | H69: =G69/0.6 -> 308.4545455 | I69: =VLOOKUP(C69,[1]辅助表!Y:Z,2,0) -> 4 | J69: 185 | K69: 308
A70: 橙色头饰 | B70: 12 | C70: 速度 | D70: 橙色 | E70: 头饰 | F70: 21 | G70: =176*[1]辅助表!$AG$6*F70/100 -> 31.416 | H70: =176*[1]辅助表!$AF$6*F70/100 -> 36.96 | I70: =VLOOKUP(C70,[1]辅助表!Y:Z,2,0) -> 5 | J70: 31 | K70: 36
A71: 橙色头饰 | B71: 12 | C71: 暴击伤害 | D71: 橙色 | E71: 头饰 | F71: 26 | G71: 25 | H71: 25 | I71: =VLOOKUP(C71,[1]辅助表!Y:Z,2,0) -> 56 | J71: 25 | K71: 25
A72: 橙色头饰 | B72: 12 | C72: 火攻（%） | D72: 橙色 | E72: 头饰 | F72: 10 | G72: 5 | H72: 10 | I72: =VLOOKUP(C72,[1]辅助表!Y:Z,2,0) -> 101 | J72: 5 | K72: 10
A73: 橙色头饰 | B73: 12 | C73: 风攻（%） | D73: 橙色 | E73: 头饰 | F73: 10 | G73: 5 | H73: 10 | I73: =VLOOKUP(C73,[1]辅助表!Y:Z,2,0) -> 102 | J73: 5 | K73: 10
A74: 橙色头饰 | B74: 12 | C74: 水攻（%） | D74: 橙色 | E74: 头饰 | F74: 10 | G74: 5 | H74: 10 | I74: =VLOOKUP(C74,[1]辅助表!Y:Z,2,0) -> 103 | J74: 5 | K74: 10
A75: 橙色头饰 | B75: 12 | C75: 地攻（%） | D75: 橙色 | E75: 头饰 | F75: 10 | G75: 5 | H75: 10 | I75: =VLOOKUP(C75,[1]辅助表!Y:Z,2,0) -> 104 | J75: 5 | K75: 10
A76: 橙色头饰 | B76: 12 | C76: 光攻（%） | D76: 橙色 | E76: 头饰 | F76: 10 | G76: 5 | H76: 10 | I76: =VLOOKUP(C76,[1]辅助表!Y:Z,2,0) -> 105 | J76: 5 | K76: 10
A77: 橙色头饰 | B77: 12 | C77: 暗攻（%） | D77: 橙色 | E77: 头饰 | F77: 10 | G77: 5 | H77: 10 | I77: =VLOOKUP(C77,[1]辅助表!Y:Z,2,0) -> 106 | J77: 5 | K77: 10

Sheet Sheet2
E7: 7 | F7: 3 | H7: =E7*100 -> 700 | I7: =F7*100 -> 300
E8: 7 | F8: 3 | H8: =E8*100 -> 700 | I8: =F8*100 -> 300
E9: 7 | F9: 3 | H9: 700 | I9: 300
E10: 7 | F10: 3 | H10: 700 | I10: 300
E11: 5 | F11: 3 | H11: 500 | I11: 300
E12: 5 | F12: 3 | H12: 500 | I12: 300
E13: 14 | F13: 6 | H13: 1400 | I13: 600
E14: 14 | F14: 6 | H14: 1400 | I14: 600
E15: 14 | F15: 6 | H15: 1400 | I15: 600
E16: 14 | F16: 6 | H16: 1400 | I16: 600
E17: 14 | F17: 6 | H17: 1400 | I17: 600
E18: 3 | F18: 1.8 | H18: 300 | I18: 180
E19: 3 | F19: 1.8 | H19: 300 | I19: 180
E20: 12 | F20: 7.2 | H20: 1200 | I20: 720
E21: 12 | F21: 7.2 | H21: 1200 | I21: 720
E22: 7.5 | F22: 4.5 | H22: 750 | I22: 450
E23: 7.5 | F23: 4.5 | H23: 750 | I23: 450
E24: 6 | F24: 3.6 | H24: 600 | I24: 360
E25: 21 | F25: 12.6 | H25: 2100 | I25: 1260
E26: 4.5 | F26: 2.7 | H26: 450 | I26: 270
E27: 4.5 | F27: 2.7 | H27: 450 | I27: 270
E28: 18 | F28: 10.8 | H28: 1800 | I28: 1080
E29: 18 | F29: 10.8 | H29: 1800 | I29: 1080
E30: 1.5 | F30: 0.9 | H30: 150 | I30: 90
E31: 6 | F31: 3.6 | H31: 600 | I31: 360
E32: 2.5 | F32: 1.5 | H32: 250 | I32: 150
E33: 3 | F33: 1.8 | H33: 300 | I33: 180
E34: 12.5 | F34: 7.5 | H34: 1250 | I34: 750
E35: 12.5 | F35: 7.5 | H35: 1250 | I35: 750
E36: 12 | F36: 7.2 | H36: 1200 | I36: 720
E37: 42 | F37: 25.2 | H37: 4200 | I37: 2520
E38: 7.5 | F38: 4.5 | H38: 750 | I38: 450
E39: 7.5 | F39: 4.5 | H39: 750 | I39: 450
E40: 20 | F40: 12 | H40: 2000 | I40: 1200
E41: 7.5 | F41: 4.5 | H41: 750 | I41: 450
E42: 7.5 | F42: 4.5 | H42: 750 | I42: 450
E43: 20 | F43: 12 | H43: 2000 | I43: 1200
E44: 30 | F44: 18 | H44: 3000 | I44: 1800
E45: 30 | F45: 18 | H45: 3000 | I45: 1800
E46: 3 | F46: 1.8 | H46: 300 | I46: 180
E47: 12 | F47: 7.2 | H47: 1200 | I47: 720
E48: 5 | F48: 3 | H48: 500 | I48: 300
E49: 6 | F49: 3.6 | H49: 600 | I49: 360
E50: 5 | F50: 3 | H50: 500 | I50: 300
E51: 5 | F51: 3 | H51: 500 | I51: 300
E52: 5 | F52: 3 | H52: 500 | I52: 300
E53: 10 | F53: 6 | H53: 1000 | I53: 600
E54: 5 | F54: 3 | H54: 500 | I54: 300
E55: 10 | F55: 6 | H55: 1000 | I55: 600
E56: 10 | F56: 6 | H56: 1000 | I56: 600
E57: 5 | F57: 3 | H57: 500 | I57: 300
E58: 10 | F58: 6 | H58: 1000 | I58: 600
E59: 10 | F59: 6 | H59: 1000 | I59: 600
E60: 10 | F60: 6 | H60: 1000 | I60: 600
E61: 10 | F61: 6 | H61: 1000 | I61: 600
E62: 20 | F62: 12 | H62: 2000 | I62: 1200
E63: 10 | F63: 6 | H63: 1000 | I63: 600
E64: 10 | F64: 6 | H64: 1000 | I64: 600
E65: 10 | F65: 6 | H65: 1000 | I65: 600
E66: 20 | F66: 12 | H66: 2000 | I66: 1200
E67: 20 | F67: 12 | H67: 2000 | I67: 1200
E68: 10 | F68: 6 | H68: 1000 | I68: 600
E69: 10 | F69: 6 | H69: 1000 | I69: 600
E70: 18 | F70: 11 | H70: 1800 | I70: 1100
E71: 18 | F71: 11 | H71: 1800 | I71: 1100
E72: 12 | F72: 7.2 | H72: =E72*100 -> 1200 | I72: =F72*100 -> 720
E73: 18 | F73: 11 | H73: 1800 | I73: 1100
E74: 12.5 | F74: 7.5 | H74: 1250 | I74: 750
E75: 12 | F75: 7.2 | H75: 1200 | I75: 720
E76: 42 | F76: 25.2 | H76: 4200 | I76: 2520
E77: 12.5 | F77: 7.5 | H77: 1250 | I77: 750
E78: 18 | F78: 11 | H78: 1800 | I78: 1100
E79: 18 | F79: 11 | H79: 1800 | I79: 1100
E80: 12 | F80: 7.2 | H80: 1200 | I80: 720
E81: 42 | F81: 25.2 | H81: 4200 | I81: 2520
E82: 12 | F82: 7.2 | H82: 1200 | I82: 720
E83: 18 | F83: 11 | H83: 1800 | I83: 1100
E84: 12 | F84: 7.2 | H84: 1200 | I84: 720
E85: 18 | F85: 11 | H85: 1800 | I85: 1100
E86: 12.5 | F86: 7.5 | H86: 1250 | I86: 750
E87: 18 | F87: 11 | H87: 1800 | I87: 1100
E88: 12.5 | F88: 7.5 | H88: 1250 | I88: 750
E89: 12.5 | F89: 7.5 | H89: 1250 | I89: 750
E90: 18 | F90: 11 | H90: 1800 | I90: 1100
